bitfinex-derivatives/quotes_BNBF0:USTF0_20250425
["timestamp","ask_amount","ask_price","bid_price","bid_amount"]
[1745551132994,0.28993718,601.34,599.78,3.234]
[1745551132995,1.12387459,601.23,599.78,3.234]
[1745551133494,1.12387459,601.22,599.78,3.234]
[1745551133995,1.12387459,601.21,599.78,3.234]
[1745551134495,1.12387459,601.2,599.78,3.234]
[1745551134996,0.28992148,601.19,599.78,3.234]
[1745551135197,1.12387459,601.18,599.78,3.234]
[1745551135399,1.12387459,601.18,599.79,0.30600625]
[1745551135697,1.12387459,601.17,599.79,0.30600625]
[1745551135895,1.12387459,601.16,599.79,0.30600625]
[1745551136194,1.12387459,601.16,599.78,3.234]
[1745551136399,1.12387459,601.15,599.78,3.234]
[1745551137001,1.12387459,601.14,599.78,3.234]
[1745551137399,1.12387459,601.13,599.78,3.234]
[1745551137999,0.28992993,601.12,599.79,0.30601303]
[1745551138298,1.41380452,601.12,599.79,0.30601303]
[1745551138698,1.12387459,601.11,599.79,0.30601303]
[1745551139194,1.12387459,601.1,599.79,0.30601303]
[1745551139399,1.12387459,601.1,599.78,3.234]
[1745551139597,1.12387459,601.09,599.78,3.234]
[1745551139796,1.12387459,601.08,599.78,3.234]
[1745551140301,1.12387459,601.07,599.79,0.30601013]
[1745551140600,1.12387459,601.06,599.79,0.30601013]
[1745551140800,1.12387459,601.05,599.79,0.30601013]
[1745551141096,1.12387459,601.04,599.79,0.30601013]
[1745551141397,1.12387459,601.04,599.78,3.234]
[1745551141601,1.12387459,601.04,599.79,0.30601194]
[1745551141802,1.12387459,601.03,599.79,0.30601194]
[1745551142600,1.12387459,601.02,599.79,0.30601194]
[1745551142802,1.12387459,601.01,599.8,0.30600172]
[1745551143001,1.12387459,601.01,599.79,0.30600172]
[1745551143202,1.12387459,601.0,599.8,0.30600172]
[1745551143501,1.12387459,601.0,599.78,2.007]
[1745551143900,1.12387459,600.99,599.78,2.007]
[1745551144201,1.4138323,600.99,599.78,2.007]
[1745551144801,1.12387459,600.98,599.78,2.007]
[1745551145003,1.12387459,600.98,599.78,3.301]
[1745551145397,1.12387459,600.97,599.78,3.301]
[1745551145903,1.12387459,600.96,599.78,3.301]
[1745551146103,1.12387459,600.95,599.78,3.301]
[1745551146306,1.12387459,600.95,599.78,4.214]
[1745551146603,1.12387459,600.94,599.78,4.214]
[1745551147004,1.12387459,600.93,599.78,4.214]
[1745551147205,1.41389272,600.93,599.78,4.214]
[1745551147706,1.12387459,600.92,599.78,4.214]
[1745551148106,1.12387459,600.91,599.78,4.214]
[1745551148707,1.12387459,600.9,599.78,4.214]
[1745551149107,1.12387459,600.89,599.78,4.214]
[1745551149401,1.12387459,600.88,599.78,4.214]
[1745551149906,1.12387459,600.87,599.78,4.214]
[1745551150107,1.41389997,600.87,599.78,4.214]
[1745551150307,1.12387459,600.86,599.78,4.214]
[1745551150908,1.12387459,600.85,599.78,4.214]
[1745551151509,1.12387459,600.84,599.78,4.214]
[1745551152004,1.12387459,600.83,599.78,4.214]
[1745551152709,1.12387459,600.82,599.78,4.214]
[1745551153110,1.12387459,600.81,599.78,4.214]
[1745551153811,1.12387459,600.8,599.78,4.214]
[1745551154607,1.12387459,600.79,599.78,4.214]
[1745551155211,1.12387459,600.78,599.78,4.214]
[1745551156009,1.25759526,601.9,599.78,4.214]
[1745551156010,1.12387459,600.77,599.78,4.214]
[1745551156511,1.12387459,600.76,599.78,4.214]
[1745551156713,1.12387459,600.75,599.78,4.214]
[1745551157214,1.12387459,600.74,599.78,4.214]
[1745551157811,1.12387459,600.73,599.78,4.214]
[1745551158412,1.12387459,600.72,599.78,4.214]
[1745551159117,1.12387459,600.71,599.78,4.214]
[1745551159816,1.12387459,600.7,599.78,4.214]
[1745551160518,1.12387459,600.69,599.78,4.214]
[1745551160711,1.12387459,600.68,599.78,4.214]
[1745551161114,1.12387459,600.67,599.78,4.214]
[1745551161318,1.12387459,600.66,599.78,4.214]
[1745551161718,1.12387459,600.65,599.78,4.214]
[1745551161919,1.12387459,600.64,599.78,4.214]
[1745551162314,1.12387459,600.63,599.78,3.411]
[1745551162715,1.12387459,600.63,599.78,1.294]
[1745551162913,1.12387459,600.62,599.78,1.294]
[1745551163615,1.12387459,600.61,599.78,1.294]
[1745551164220,1.12387459,600.6,599.78,1.294]
[1745551164718,1.12387459,600.59,599.78,1.294]
[1745551165115,1.12387459,600.58,599.78,1.294]
[1745551165816,1.12387459,600.57,599.78,1.294]
[1745551166720,1.12387459,600.56,599.78,1.294]
[1745551166915,0.29005076,600.79,599.78,1.294]
[1745551167116,1.12451438,600.55,599.78,1.294]
[1745551167522,1.12451438,600.54,599.78,1.294]
[1745551168124,1.12451438,600.53,599.78,1.294]
[1745551168623,1.12451438,600.52,599.78,1.294]
[1745551169629,1.12451438,600.51,599.78,1.294]
[1745551169927,1.12451438,600.5,599.78,1.294]
[1745551170627,1.12440524,600.49,599.78,1.294]
[1745551171127,1.12440524,600.48,599.78,1.294]
[1745551171528,1.12440524,600.47,599.78,1.294]
[1745551171828,1.12440524,600.46,599.78,1.294]
[1745551172224,1.12440524,600.45,599.78,1.294]
[1745551172730,1.12440524,600.44,599.78,1.294]
[1745551173531,1.12440524,600.43,599.78,1.294]
[1745551173924,1.12440524,600.42,599.78,1.294]
[1745551174424,0.29005559,600.85,599.78,1.294]
[1745551174425,1.12440524,600.41,599.78,1.294]
[1745551174832,1.12440524,600.4,599.78,1.294]
[1745551175229,1.12440524,600.39,599.78,1.294]
[1745551175731,1.12440524,600.38,599.78,1.294]
[1745551176131,1.12440524,600.37,599.78,1.294]
[1745551176331,1.12440524,600.36,599.78,1.294]
[1745551176633,1.12440524,600.35,599.78,1.294]
[1745551177134,1.12440524,600.34,599.78,1.294]
[1745551177826,1.12440524,600.33,599.78,1.294]
[1745551178331,1.12440524,600.32,599.78,1.294]
[1745551178832,1.12440524,600.31,599.78,1.294]
[1745551179332,1.12440524,600.3,599.78,1.294]
[1745551179728,1.12440524,600.29,599.78,1.294]
[1745551180427,1.12440524,600.28,599.78,1.294]
[1745551180833,1.12440524,600.27,599.78,1.294]
[1745551181633,1.12440524,600.26,599.78,1.294]
[1745551182134,1.12440524,600.25,599.78,1.294]
[1745551182629,1.12440524,600.24,599.78,1.294]
[1745551183428,1.12440524,600.23,599.78,1.294]
[1745551183937,1.12440524,600.22,599.78,1.294]
[1745551184334,1.12440524,600.21,599.78,1.294]
[1745551184835,1.12440524,600.2,599.78,1.294]
[1745551185641,1.12440524,600.19,599.78,1.294]
[1745551186341,1.12440524,600.18,599.78,1.294]
[1745551186841,1.12440524,600.17,599.78,1.294]
[1745551187140,1.12440524,600.16,599.78,1.294]
[1745551187642,1.12440524,600.15,599.78,1.294]
[1745551187839,1.25759526,601.63,599.78,1.294]
[1745551187840,1.12440524,600.14,599.78,1.294]
[1745551188039,1.12440524,600.14,599.73,0.863]
[1745551188237,1.12440524,600.13,599.73,0.863]
[1745551188537,1.12440524,600.12,599.73,0.863]
[1745551189241,1.12440524,600.11,599.73,0.863]
[1745551189544,1.12440524,600.1,599.73,0.863]
[1745551189838,1.12440524,600.09,599.73,0.863]
[1745551190439,1.12440524,600.08,599.73,0.863]
[1745551191037,1.25759526,601.84,599.73,0.863]
[1745551191038,1.12440524,600.07,599.73,0.863]
[1745551191538,1.12440524,600.06,599.73,0.863]
[1745551192146,1.12440524,600.05,599.73,0.863]
[1745551192947,1.12440524,600.04,599.73,0.863]
[1745551193644,1.12440524,600.03,599.73,0.863]
[1745551193947,1.25759526,601.84,599.73,0.863]
[1745551194149,1.25759526,601.73,599.73,0.863]
[1745551194648,1.12463301,601.72,599.73,0.863]
[1745551194849,1.12463301,601.71,599.73,0.863]
[1745551195045,1.41450257,601.71,599.73,0.863]
[1745551195250,1.12463301,601.7,599.73,0.863]
[1745551195551,1.12463301,601.69,599.73,0.863]
[1745551195751,1.12463301,601.69,599.74,0.30601652]
[1745551196250,1.12463301,601.69,599.73,0.863]
[1745551196451,1.12463301,601.68,599.74,0.3060121]
[1745551196750,1.12463301,601.68,599.75,1.162]
[1745551196951,1.12463301,601.67,599.76,0.3060121]
[1745551197553,1.12463301,601.66,599.76,0.3060121]
[1745551197848,1.12463301,601.65,599.76,0.3060121]
[1745551198453,1.12463301,601.64,599.76,0.3060121]
[1745551198752,1.12463301,601.63,599.76,0.3060121]
[1745551199353,1.12463301,601.62,599.76,0.3060121]
[1745551199849,1.25759526,601.52,599.76,0.3060121]
[1745551200653,1.12463301,601.51,599.76,0.3060121]
[1745551200854,1.12463301,601.51,599.77,0.30600249]
[1745551201055,0.28988525,601.5,599.76,0.30600249]
[1745551201355,1.12463301,601.49,599.76,0.30600249]
[1745551201755,1.12463301,601.48,599.76,0.30600249]
[1745551202354,1.41452189,601.47,599.76,0.30600249]
[1745551202554,1.12463301,601.46,599.76,0.30600249]
[1745551202763,1.25759526,601.42,599.76,0.30600249]
[1745551202956,1.12463301,601.41,599.76,0.30600249]
[1745551203356,1.12463301,601.4,599.76,0.30600249]
[1745551203656,1.12463301,601.39,599.76,0.30600249]
[1745551203852,1.12463301,601.38,599.76,0.30600249]
[1745551204051,1.12463301,601.37,599.76,0.30600249]
[1745551204557,1.12463301,601.36,599.76,0.30600249]
[1745551204759,0.28988525,601.38,599.76,0.30600249]
[1745551204760,1.12463301,601.35,599.76,0.30600249]
[1745551204951,1.12463301,601.34,599.76,0.30600249]
[1745551205156,1.12463301,601.34,599.77,1.22]
[1745551205357,1.12463301,601.33,599.78,0.30600249]
[1745551205754,1.12463301,601.32,599.78,0.30600249]
[1745551206057,1.12463301,601.31,599.78,0.30600249]
[1745551206359,1.12463301,601.3,599.78,0.30600249]
[1745551206657,1.12463301,601.29,599.78,0.30600249]
[1745551206859,1.12463301,601.28,599.78,0.30600249]
[1745551207160,1.12463301,601.27,599.78,0.30600249]
[1745551207356,1.12463301,601.26,599.78,0.30600249]
[1745551207655,1.12463301,601.25,599.78,0.30600249]
[1745551208056,1.12463301,601.24,599.78,0.30600249]
[1745551208655,1.12463301,601.24,599.78,1.30300249]
[1745551208858,1.12463301,601.24,599.79,0.30600249]
[1745551209060,1.12463301,601.23,599.79,0.30600249]
[1745551209659,1.12463301,601.22,599.79,0.30600249]
[1745551210063,0.28989491,601.21,599.79,0.30600249]
[1745551210763,1.12463301,601.2,599.78,0.997]
[1745551211162,1.12463301,601.2,599.75,1.162]
[1745551211362,1.12463301,601.2,599.76,0.30600771]
[1745551211559,1.12463301,601.19,599.76,0.30600771]
[1745551211766,1.12463301,601.18,599.76,0.30600771]
[1745551212065,1.12463301,601.18,599.77,0.30600771]
[1745551212262,1.12463301,601.17,599.62,0.30600771]
[1745551213166,0.28992873,601.16,599.63,0.30600771]
[1745551213463,1.41456174,601.16,599.64,0.30600771]
[1745551213662,1.12463301,601.15,599.49,0.30600771]
[1745551213960,0.28992873,601.16,599.5,0.30600771]
[1745551213961,1.12463301,601.14,599.5,0.30600771]
[1745551214160,1.12463301,601.14,599.5,0.28994684]
[1745551214364,1.12463301,601.13,599.51,0.30600771]
[1745551214560,1.12463301,601.13,599.52,0.3059973]
[1745551214759,1.12463301,601.13,599.53,0.3059973]
[1745551214959,1.12463301,601.12,599.51,0.3059973]
[1745551215162,1.12463301,601.12,599.52,0.3059973]
[1745551215363,1.12463301,601.12,599.51,0.3059973]
[1745551215559,1.12463301,601.11,599.52,0.3059973]
[1745551215765,1.12463301,601.11,599.53,0.3059973]
[1745551216067,1.12463301,601.11,599.54,0.3059973]
[1745551216265,1.12463301,601.11,599.51,0.3059973]
[1745551216566,1.12463301,601.1,599.51,0.3059973]
[1745551217169,1.12463301,601.09,599.51,0.3059973]
[1745551218164,1.12463301,601.08,599.51,0.3059973]
[1745551218568,1.12463301,601.07,599.51,0.3059973]
[1745551219064,1.12463301,601.07,599.55,1.0596617]
[1745551219065,0.28998308,601.06,599.55,1.0596617]
[1745551219270,1.12463301,601.05,599.55,1.0596617]
[1745551219570,1.12463301,601.05,599.56,0.30603066]
[1745551219868,1.12463301,601.04,599.56,0.30603066]
[1745551220365,1.12463301,601.03,599.56,0.30603066]
[1745551220769,1.12463301,601.02,599.55,1.0596617]
[1745551220966,1.12463301,601.02,599.56,0.30603059]
[1745551221166,1.12463301,601.01,599.56,0.30603059]
[1745551221470,1.12463301,601.0,599.56,0.30603059]
[1745551221765,1.12463301,600.99,599.56,0.30603059]
[1745551222272,1.41461972,600.98,599.56,0.30603059]
[1745551222566,1.41461972,600.98,599.59,1.0596617]
[1745551222769,1.12463301,600.97,599.6,0.30603059]
[1745551223469,1.12463301,600.96,599.6,0.30603059]
[1745551223869,1.12463301,600.95,599.6,0.30603059]
[1745551224070,1.12463301,600.95,599.61,0.30603388]
[1745551224270,1.12463301,600.94,599.6,0.30603388]
[1745551224566,1.12463301,600.94,599.61,0.30603388]
[1745551224769,1.12463301,600.93,599.6,0.30603388]
[1745551224973,1.12463301,600.92,599.61,0.30603388]
[1745551225172,1.12463301,600.92,599.56,0.30603388]
[1745551225367,1.12463301,600.91,599.57,0.30603388]
[1745551225667,1.12463301,600.91,599.58,0.30603388]
[1745551225867,1.12463301,600.9,599.56,0.30603388]
[1745551226062,1.12463301,600.89,599.56,0.30603388]
[1745551226365,1.12463301,600.88,599.56,0.30603388]
[1745551226974,1.12463301,600.87,599.56,0.30603388]
[1745551227167,1.12463301,600.86,599.55,1.0596617]
[1745551227467,1.12463301,600.86,599.56,0.30603245]
[1745551227668,1.12463301,600.85,599.56,0.30603245]
[1745551228075,1.12463301,600.84,599.56,0.30603245]
[1745551228275,1.12463301,600.84,599.49,0.29000363]
[1745551228469,1.12463301,600.83,599.5,0.30603245]
[1745551228774,1.12463301,600.83,599.49,0.29000363]
[1745551228975,1.12463301,600.83,599.5,0.30601318]
[1745551229171,1.12463301,600.82,599.5,0.30601318]
[1745551230376,1.12463301,600.81,599.49,0.29000363]
[1745551230577,1.12463301,600.81,599.5,0.30600364]
[1745551230779,1.12463301,600.8,599.5,0.30600364]
[1745551231278,1.12463301,600.79,599.5,0.30600364]
[1745551232478,1.12463301,600.78,599.5,0.30600364]
[1745551232679,1.12463301,600.77,599.5,0.30600364]
[1745551233476,1.12463301,600.76,599.5,0.30600364]
[1745551233881,1.12463301,600.75,599.5,0.30600364]
[1745551234081,1.12463301,600.75,599.34,0.30600364]
[1745551234381,1.12463301,600.74,599.35,0.30600364]
[1745551234577,1.12463301,600.74,599.34,0.30600364]
[1745551234782,1.12463301,600.73,599.34,0.30600364]
[1745551234979,1.12463301,600.73,599.52,1.0596617]
[1745551235177,1.12463301,600.73,599.53,0.30600364]
[1745551235377,1.12463301,600.72,599.53,0.30600364]
[1745551235982,1.12463301,600.71,599.53,0.30600364]
[1745551236383,1.12463301,600.7,599.53,0.30600364]
[1745551236783,1.12463301,600.7,599.52,1.0596617]
[1745551236983,1.12463301,600.69,599.53,0.30607282]
[1745551237376,1.12463301,600.68,599.53,0.30607282]
[1745551237884,1.12463301,600.67,599.48,0.30607282]
[1745551238378,1.12463301,600.66,599.47,1.0596617]
[1745551238581,1.12463301,600.65,599.48,0.30607282]
[1745551238881,1.12463301,600.64,599.48,0.30607282]
[1745551239584,1.12463301,600.63,599.48,0.30607282]
[1745551239782,1.12463301,600.63,599.11,1.0596617]
[1745551239783,1.12463301,600.63,599.45,1.0596617]
[1745551240083,1.12463301,600.62,599.45,1.0596617]
[1745551240385,1.12463301,600.61,599.45,1.0596617]
[1745551240779,0.29003746,600.92,599.45,1.0596617]
[1745551240780,1.12463301,600.6,599.45,1.0596617]
[1745551241481,1.12463301,600.59,599.45,1.0596617]
[1745551241979,1.12463301,600.58,599.45,1.0596617]
[1745551242981,1.12463301,600.57,599.45,1.0596617]
[1745551243383,1.12463301,600.57,599.08,1.0596617]
[1745551243579,1.12463301,600.57,599.09,0.30622499]
[1745551243781,1.12463301,600.56,599.09,0.30622499]
[1745551243984,1.12463301,600.55,599.09,0.30622499]
[1745551244283,1.12463301,600.54,599.1,0.2901862]
[1745551244480,1.12463301,600.54,599.11,0.30622499]
[1745551244685,1.12463301,600.54,599.1,0.2901862]
[1745551244986,1.12463301,600.53,599.11,0.30623978]
[1745551245181,1.12463301,600.52,599.11,0.30623978]
[1745551245990,1.25759526,601.49,599.09,0.30623978]
[1745551245991,1.12463301,600.51,599.09,0.30623978]
[1745551246187,1.12463301,600.51,599.1,0.29018015]
[1745551246386,1.12463301,600.51,599.11,0.3062252]
[1745551246581,1.12463301,600.5,599.11,0.3062252]
[1745551247182,1.12463301,600.49,599.11,0.3062252]
[1745551247688,1.12463301,600.48,599.11,0.3062252]
[1745551247889,1.12463301,600.48,599.1,0.29018015]
[1745551248088,1.12463301,600.47,599.11,0.30621928]
[1745551248389,1.12463301,600.46,599.11,0.30621928]
[1745551248784,1.12463301,600.45,599.11,0.30621928]
[1745551248986,1.12463301,600.45,598.75,1.0596617]
[1745551248987,1.12463301,600.44,598.76,0.30621928]
[1745551249184,1.12463301,600.44,599.1,0.29018741]
[1745551249386,1.12463301,600.43,599.11,0.30621928]
[1745551249584,1.12463301,600.43,599.12,0.3061906]
[1745551249884,1.12463301,600.43,599.13,0.3061906]
[1745551250088,1.12463301,600.42,598.76,0.3061906]
[1745551250388,1.12463301,600.42,599.11,0.29022855]
[1745551250589,1.12463301,600.41,599.12,0.3061906]
[1745551250789,1.12463301,600.41,598.76,0.3061906]
[1745551250990,1.12463301,600.4,598.76,0.3061906]
[1745551251587,1.12463301,600.39,598.75,0.3061906]
[1745551251992,1.12463301,600.38,598.75,0.3061906]
[1745551252290,1.12463301,600.38,598.76,0.29023461]
[1745551252491,1.12463301,600.37,598.77,0.3061906]
[1745551252893,1.12463301,600.36,598.77,0.3061906]
[1745551253193,1.12463301,600.35,598.77,0.3061906]
[1745551253694,1.12463301,600.34,598.77,0.3061906]
[1745551254193,1.12463301,600.33,598.77,0.3061906]
[1745551254990,1.12463301,600.32,598.71,0.3061906]
[1745551255191,1.25759526,601.93,598.76,0.29023945]
[1745551255192,1.12463301,600.31,598.76,0.29023945]
[1745551255394,1.12463301,600.31,598.77,0.3061906]
[1745551255595,1.25759526,601.93,598.77,0.3061906]
[1745551255596,1.12463301,600.3,598.77,0.3061906]
[1745551255798,1.12463301,600.29,598.77,0.3061906]
[1745551255991,1.12463301,600.29,598.76,0.29023945]
[1745551256197,1.12463301,600.29,598.77,0.30621552]
[1745551256493,1.12463301,600.28,598.77,0.30621552]
[1745551256697,1.12463301,600.27,598.77,0.30621552]
[1745551257198,1.12463301,600.26,598.77,0.30621552]
[1745551257698,1.12463301,600.25,598.77,0.30621552]
[1745551257997,1.12463301,600.25,598.78,0.30621552]
[1745551258199,1.12463301,600.25,598.79,0.30621552]
[1745551258399,1.12463301,600.24,598.8,0.30621552]
[1745551258697,1.12463301,600.24,598.81,0.30621552]
[1745551258902,1.12463301,600.23,598.82,0.30621552]
[1745551259100,1.12463301,600.23,598.83,0.30621552]
[1745551259295,1.12463301,600.23,598.84,0.30621598]
[1745551259495,1.12463301,600.23,598.85,0.30621598]
[1745551259698,1.12463301,600.22,598.77,0.30621598]
[1745551260199,1.12463301,600.21,598.77,0.30621598]
[1745551260401,1.12463301,600.2,598.86,1.0596617]
[1745551260603,1.12463301,600.2,598.87,0.30621598]
[1745551260797,1.12463301,600.2,598.88,0.3062014]
[1745551261001,1.12463301,600.2,598.87,0.3062014]
[1745551261199,1.12463301,600.19,598.88,0.3062014]
[1745551261502,1.12463301,600.19,598.89,0.3062014]
[1745551261704,1.12463301,600.18,598.87,0.3062014]
[1745551262004,1.12463301,600.17,598.87,0.3062014]
[1745551262405,1.12463301,600.16,598.87,0.3062014]
[1745551263306,1.12463301,600.15,598.84,0.3062014]
[1745551263605,1.12463301,600.15,598.85,0.3062014]
[1745551263803,1.12463301,600.15,598.84,0.3062014]
[1745551264200,1.12463301,600.14,598.84,0.3062014]
[1745551264607,1.12463301,600.13,598.84,0.3062014]
[1745551265200,1.12463301,600.12,598.83,0.29025034]
[1745551265403,1.12463301,600.12,598.84,0.30625045]
[1745551266108,1.12463301,600.11,598.84,0.30625045]
[1745551266300,1.12463301,600.1,598.84,0.30625045]
[1745551266707,1.12463301,600.1,598.83,0.29025034]
[1745551266902,1.12463301,600.09,598.84,0.30624968]
[1745551267104,1.12463301,600.09,598.83,0.29029755]
[1745551267301,1.12463301,600.09,598.84,0.30624968]
[1745551267501,1.12463301,600.08,598.84,0.30624968]
[1745551268207,1.12463301,600.07,598.84,0.30624968]
[1745551268402,1.12463301,600.07,598.85,0.30624866]
[1745551268609,1.12463301,600.06,598.84,0.30624866]
[1745551268909,1.12463301,600.05,598.85,0.30624866]
[1745551269209,1.12463301,600.05,598.83,0.29029755]
[1745551269210,1.12463301,600.04,598.86,0.30624866]
[1745551269509,1.12463301,600.04,598.87,0.30624866]
[1745551269709,1.12463301,600.03,598.88,0.30624866]
[1745551269905,1.12463301,600.03,598.84,0.30624866]
[1745551270103,1.12463301,600.02,598.85,0.29028303]
[1745551270509,1.12463301,600.01,598.86,0.30624866]
[1745551271210,1.12463301,600.0,598.86,0.30624866]
[1745551271511,1.12463301,599.99,598.85,0.29028303]
[1745551271711,1.12463301,599.99,598.86,0.30628996]
[1745551271910,1.12463301,599.98,598.86,0.30628996]
[1745551272306,1.12463301,599.97,598.86,0.30628996]
[1745551273414,1.12463301,599.96,598.86,0.30628996]
[1745551273612,1.12463301,599.96,598.85,0.29028303]
[1745551274114,1.12463301,599.96,598.86,0.30636181]
[1745551274414,1.12463301,599.95,598.86,0.30636181]
[1745551274611,1.12463301,599.94,598.85,0.29028303]
[1745551274813,1.12463301,599.93,598.86,0.30635642]
[1745551275009,1.12463301,599.93,598.85,0.29028303]
[1745551275412,1.12463301,599.92,598.86,0.30634124]
[1745551275612,1.12463301,599.92,598.85,0.29028303]
[1745551275810,1.12463301,599.91,598.86,0.3063394]
[1745551276012,1.12463301,599.91,598.52,1.0596617]
[1745551276216,1.12463301,599.9,598.85,0.29038597]
[1745551276410,1.12463301,599.9,598.86,0.3063465]
[1745551276615,1.12463301,599.89,598.85,0.29038839]
[1745551276918,1.12463301,599.89,598.86,0.3063465]
[1745551277314,1.12463301,599.88,598.86,0.3063465]
[1745551277611,1.12463301,599.87,598.86,0.3063465]
[1745551277819,1.12463301,599.86,598.86,0.3063465]
[1745551278619,1.12463301,599.85,598.86,0.3063465]
[1745551278920,1.12463301,599.84,598.86,0.3063465]
[1745551279121,1.12463301,599.84,598.85,0.29035447]
[1745551279319,1.12463301,599.84,598.86,0.3063465]
[1745551279821,1.12463301,599.83,598.86,0.3063465]
[1745551280519,1.12463301,599.83,598.85,0.29035447]
[1745551280719,1.12463301,599.82,598.85,0.29035447]
[1745551280919,1.12463301,599.82,598.86,0.30632789]
[1745551281120,1.12463301,599.81,598.86,0.30632789]
[1745551281420,1.12463301,599.8,598.86,0.30632789]
[1745551282016,1.12463301,599.8,598.87,0.30632789]
[1745551282220,1.12463301,599.8,598.49,1.319]
[1745551282221,1.12463301,599.8,598.85,0.29034357]
[1745551282421,1.12463301,599.8,598.86,0.30632789]
[1745551282621,1.12463301,599.79,598.86,0.30632789]
[1745551282821,1.12463301,599.78,598.86,0.30632789]
[1745551283322,1.12463301,599.77,598.86,0.30632789]
[1745551283522,1.12463301,599.76,598.86,0.30632789]
[1745551284021,1.12463301,599.75,598.86,0.30632789]
[1745551284221,1.12463301,599.75,598.87,0.30632789]
[1745551284422,1.12463301,599.75,598.88,0.30624175]
[1745551284623,1.12463301,599.75,598.89,0.30624175]
[1745551284816,1.12463301,599.75,598.9,0.30624175]
[1745551285016,1.25759526,601.9,598.91,0.30624175]
[1745551285220,1.25759526,601.9,598.92,0.30624175]
[1745551285422,1.25759526,601.9,598.93,0.30624175]
[1745551285622,1.25759526,601.9,598.94,0.30624175]
[1745551285820,1.11846917,601.89,598.87,0.29031087]
[1745551286016,1.11846917,601.88,598.88,0.30627222]
[1745551286216,1.11846917,601.88,598.88,1.37527222]
[1745551286421,1.11846917,601.87,598.89,0.30627222]
[1745551286725,1.40854048,601.87,598.89,0.30627222]
[1745551286919,1.25759526,601.37,599.0,1.0596617]
[1745551287120,1.25759526,601.37,599.01,0.30627222]
[1745551287423,1.25759526,601.37,599.0,1.0596617]
[1745551287625,1.11846917,601.36,599.01,0.30627365]
[1745551288022,1.11846917,601.35,599.01,0.30627365]
[1745551288316,1.40858884,601.35,599.01,0.30627365]
[1745551288825,1.11846917,601.34,599.01,0.30627365]
[1745551289125,1.11846917,601.33,599.01,0.30627365]
[1745551289326,1.25759526,601.28,599.01,0.30627365]
[1745551289519,1.25759526,601.28,598.94,0.30627365]
[1745551289723,1.11846917,601.27,598.94,0.30627365]
[1745551290025,1.11846917,601.26,598.94,0.30627365]
[1745551290427,1.11846917,601.25,598.94,0.30627365]
[1745551290623,1.11846917,601.25,598.95,0.30628788]
[1745551290826,1.11846917,601.24,598.94,0.30628788]
[1745551291026,1.11846917,601.24,598.95,0.30628788]
[1745551291222,0.29014749,601.23,598.96,0.30628788]
[1745551291426,1.11846917,601.22,598.94,0.30628788]
[1745551291627,1.11846917,601.22,598.95,0.30628788]
[1745551291926,1.11846917,601.21,598.96,0.30628788]
[1745551292126,1.11846917,601.21,598.94,0.30628788]
[1745551292527,1.11846917,601.2,598.94,0.30628788]
[1745551293528,1.11846917,601.19,598.94,0.30628788]
[1745551293727,1.11846917,601.19,598.93,0.29014749]
[1745551293925,1.11846917,601.18,598.94,0.30635715]
[1745551294130,1.40865779,601.18,598.95,0.30635715]
[1745551294332,1.11846917,601.17,598.9,0.30635715]
[1745551294631,1.11846917,601.17,598.91,0.30634391]
[1745551294830,1.11846917,601.17,598.9,0.30634391]
[1745551295031,1.11846917,601.16,598.91,0.30634391]
[1745551295224,1.11846917,601.15,598.89,0.29018862]
[1745551295425,1.11846917,601.15,598.9,0.30618356]
[1745551295725,1.11846917,601.14,598.9,0.30618356]
[1745551295927,1.11846917,601.13,598.9,0.30618356]
[1745551296233,1.11846917,601.13,598.9,1.23818356]
[1745551296526,1.11846917,601.13,598.91,0.30618356]
[1745551296727,1.11846917,601.12,598.91,0.30618356]
[1745551297227,1.11846917,601.11,598.91,0.30618356]
[1745551297632,1.11846917,601.1,598.91,0.30618356]
[1745551298032,1.11846917,601.09,598.91,0.30618356]
[1745551298232,1.11846917,601.09,598.9,2.113]
[1745551298425,1.11846917,601.09,598.91,0.3062178]
[1745551298627,1.11846917,601.08,598.91,0.3062178]
[1745551299028,1.11846917,601.07,598.91,0.3062178]
[1745551299233,1.11846917,601.06,598.91,0.3062178]
[1745551299633,1.11846917,601.05,598.91,0.3062178]
[1745551300333,1.40860699,601.04,598.91,0.3062178]
[1745551300733,1.11846917,601.03,598.91,0.3062178]
[1745551301229,1.11846917,601.03,598.9,2.40313782]
[1745551301432,1.11846917,601.02,598.91,0.30621951]
[1745551301732,1.11846917,601.01,598.91,0.30621951]
[1745551302331,1.11846917,601.0,598.91,0.30621951]
[1745551302531,1.11846917,601.0,598.92,0.30621951]
[1745551302733,1.11846917,600.99,598.9,2.40313782]
[1745551302930,1.11846917,600.99,598.91,0.30614454]
[1745551303234,1.11846917,600.98,598.92,0.30614454]
[1745551303436,1.11846917,600.97,598.93,0.30614454]
[1745551303635,1.11846917,600.97,598.94,0.30614454]